[Event "Marmaris Karya IM 2018"]
[Site "Marmaris"]
[Date "2018.06.28"]
[Round "3.1"]
[White "Can, Isik"]
[Black "Bagaturov, Giorgi"]
[Result "1-0"]
[ECO "C41"]
[WhiteElo "2396"]
[BlackElo "2397"]
[Annotator "RC"]
[PlyCount "55"]
[EventDate "2018.06.25"]
[EventCountry "TUR"]
[SourceTitle "playchess.com"]
[Source "ChessBase"]
[SourceQuality "1"]
[TimeControl "5400+30"]

1. e4 {[%emt 0:00:30]} d6 {[%emt 0:01:00]} 2. d4 {[%emt 0:00:00]} Nf6 {[%emt 0:00:30]} 3. Nc3 {[%emt 0:00:00]} e5 {[%emt 0:00:00]} 4. Nf3 {[%emt 0:00:00]} Nbd7 {[%emt 0:00:00]} 5. Bc4 {[%emt 0:00:00]} Be7 {[%emt 0:00:30]} 6. O-O {[%emt 0:00:30]} O-O {[%emt 0:00:00]} 7. a4 {[%emt 0:00:30]} a6 {[%emt 0:07:00]} 8. a5 {[%emt 0:10:30]} exd4 {[%emt 0:01:30]} 9. Qxd4 {[%emt 0:10:30]} Nc5 {[%emt 0:01:30]} 10. b4 {[%emt 0:10:30]} Ne6 {[%emt 0:10:30]} 11. Qd3 {[%emt 0:00:30]} c5 {[%emt 0:06:30]} 12. Ba3 {[%emt 0:07:30]} cxb4 {[%emt 0:07:30]} 13. Bxb4 {[%emt 0:00:30]} Qc7 {[%emt 0:04:30]} 14. Ba2 {[%emt 0:18:30]} Re8 {[%emt 0:11:30]} 15. Nd2 {[%emt 0:08:30]} Bd7 {[%emt 0:27:08]} 16. Nc4 {[%emt 0:03:30]} Bc6 {[%emt 0:11:16]} 17. Nxd6 {[%emt 0:08:36]} Bxd6 {[%emt 0:03:41]} 18. Bxd6 {[%emt 0:00:33]} Qd7 {[%emt 0:00:34]} 19. Rad1 {[%emt 0:05:39]} Rad8 {[%emt 0:01:51]} 20. Qe3 {[%emt 0:06:46]} b5 {[%emt 0:02:04]} 21. f4 {[%emt 0:05:47]} Qb7 {[%emt 0:00:34]} 22. f5 {[%emt 0:00:03]} Nf8 {[%emt 0:00:57]} 23. e5 {[%emt 0:01:16]} b4 {[%emt 0:00:33]} 24. Qb6 {[%emt 0:00:42]} Rxd6 {[%emt 0:00:46]} 25. Rxd6 {[%emt 0:00:27]} Rxe5 {[%emt 0:00:23]} 26. Rxc6 {[%emt 0:00:25]} Qe7 {[%emt 0:00:05]} 27. Rxf6 {[%emt 0:00:36]} gxf6 {[%emt 0:00:24]} 28. Nd5 {[%emt 0:00:06]} 1-0

[Event "Marmaris Karya IM 2018"]
[Site "Marmaris"]
[Date "2018.06.28"]
[Round "3.3"]
[White "Tanriverdi, Enes"]
[Black "Darban, Morteza"]
[Result "1/2-1/2"]
[ECO "A40"]
[WhiteElo "2281"]
[BlackElo "2312"]
[Annotator "ChessBase"]
[PlyCount "66"]
[EventDate "2018.06.25"]
[EventCountry "TUR"]
[SourceTitle "playchess.com"]
[Source "ChessBase"]
[SourceQuality "1"]
[TimeControl "5400+30"]

1. d4 {[%emt 0:00:30]} e6 {[%emt 0:04:00]} 2. c4 {[%emt 0:00:30]} Bb4+ {[%emt 0:01:30]} 3. Nd2 {[%emt 0:00:30]} Ne7 {[%emt 0:02:30]} 4. a3 {[%emt 0:03:30]} Bxd2+ {[%emt 0:00:30]} 5. Qxd2 {[%emt 0:00:00]} d6 {[%emt 0:00:30]} 6. Nf3 {[%emt 0:00:00]} Nd7 {[%emt 0:00:30]} 7. b4 {[%emt 0:03:30]} f5 {[%emt 0:00:30]} 8. Bb2 {[%emt 0:00:30]} Nf6 {[%emt 0:00:30]} 9. g3 {[%emt 0:00:30]} a5 {[%emt 0:10:30]} 10. Bg2 {[%emt 0:04:30]} axb4 {[%emt 0:00:30]} 11. axb4 {[%emt 0:00:30]} Rxa1+ {[%emt 0:00:00]} 12. Bxa1 {[%emt 0:00:00]} b5 {[%emt 0:00:00]} 13. d5 {[%emt 0:40:00]} e5 {[%emt 0:21:30]} 14. cxb5 {[%emt 0:00:30]} h6 {[%emt 0:00:30]} 15. O-O {[%emt 0:00:30]} O-O {[%emt 0:00:30]} 16. Rd1 {[%emt 0:01:30]} Bd7 {[%emt 0:06:30]} 17. b6 {[%emt 0:14:30]} cxb6 {[%emt 0:00:00]} 18. Bxe5 {[%emt 0:00:00]} Ne4 {[%emt 0:04:00]} 19. Qa2 {[%emt 0:03:00]} dxe5 {[%emt 0:04:30]} 20. d6+ {[%emt 0:00:00]} Kh7 {[%emt 0:04:30]} 21. dxe7 {[%emt 0:00:00]} Qxe7 {[%emt 0:00:00]} 22. Qa7 {[%emt 0:00:30]} Rf7 {[%emt 0:00:00]} 23. Bh3 {[%emt 0:02:30]} Be6 {[%emt 0:09:30]} 24. Qa1 {[%emt 0:03:30]} Qxb4 {[%emt 0:10:54]} 25. Qxe5 {[%emt 0:03:10]} Qc5 {[%emt 0:06:16]} 26. Qxe6 {[%emt 0:00:27]} Nxf2 {[%emt 0:00:16]} 27. Qxf7 {[%emt 0:01:47]} Nxd1+ {[%emt 0:00:06]} 28. Kh1 {[%emt 0:00:32]} Ne3 {[%emt 0:00:53]} 29. Qe6 {[%emt 0:04:30]} b5 {[%emt 0:01:16]} 30. Qe5 {[%emt 0:00:19]} Qc1+ {[%emt 0:00:09]} 31. Ng1 {[%emt 0:00:05]} Qc6+ {[%emt 0:00:04]} 32. Nf3 {[%emt 0:00:32]} Qc1+ {[%emt 0:00:05]} 33. Ng1 {[%emt 0:00:05]} Qc6+ {[%emt 0:00:02]} 1/2-1/2

[Event "Marmaris Karya IM 2018"]
[Site "Marmaris"]
[Date "2018.06.28"]
[Round "4.1"]
[White "Bivol, Alina"]
[Black "Can, Isik"]
[Result "1/2-1/2"]
[ECO "B18"]
[WhiteElo "2365"]
[BlackElo "2396"]
[Annotator "ChessBase"]
[PlyCount "62"]
[EventDate "2018.06.25"]
[EventCountry "TUR"]
[SourceTitle "playchess.com"]
[Source "ChessBase"]
[SourceQuality "1"]
[TimeControl "5400+30"]

1. e4 {[%emt 0:00:30]} c6 {[%emt 0:01:00]} 2. d4 {[%emt 0:00:00]} d5 {[%emt 0:00:30]} 3. Nc3 {[%emt 0:00:00]} dxe4 {[%emt 0:00:00]} 4. Nxe4 {[%emt 0:00:00]} Bf5 {[%emt 0:00:00]} 5. Ng3 {[%emt 0:00:00]} Bg6 {[%emt 0:00:30]} 6. N1e2 {[%emt 0:00:30]} Nf6 {[%emt 0:00:00]} 7. Nf4 {[%emt 0:00:30]} e5 {[%emt 0:01:00]} 8. dxe5 {[%emt 0:05:30]} Qa5+ {[%emt 0:04:30]} 9. c3 {[%emt 0:00:00]} Qxe5+ {[%emt 0:00:00]} 10. Qe2 {[%emt 0:02:00]} Nbd7 {[%emt 0:00:00]} 11. Nxg6 {[%emt 0:01:30]} hxg6 {[%emt 0:00:00]} 12. Bf4 {[%emt 0:00:30]} Qxe2+ {[%emt 0:03:00]} 13. Bxe2 {[%emt 0:03:30]} Bc5 {[%emt 0:05:30]} 14. Bf3 {[%emt 0:00:00]} O-O-O {[%emt 0:04:30]} 15. O-O {[%emt 0:00:00]} Nb6 {[%emt 0:13:30]} 16. b3 {[%emt 0:14:30]} Bd6 {[%emt 0:12:30]} 17. Bxd6 {[%emt 0:09:30]} Rxd6 {[%emt 0:00:30]} 18. c4 {[%emt 0:00:30]} Re6 {[%emt 0:07:30]} 19. Rfd1 {[%emt 0:01:30]} Rd8 {[%emt 0:03:30]} 20. Kf1 {[%emt 0:01:30]} Nbd7 {[%emt 0:01:30]} 21. h3 {[%emt 0:01:30]} Ne5 {[%emt 0:08:30]} 22. Be2 {[%emt 0:01:30]} c5 {[%emt 0:00:30]} 23. Rxd8+ {[%emt 0:04:30]} Kxd8 {[%emt 0:01:30]} 24. f4 {[%emt 0:01:30]} Nc6 {[%emt 0:00:30]} 25. Bf3 {[%emt 0:00:30]} Kc7 {[%emt 0:07:30]} 26. Bxc6 {[%emt 0:10:30]} Rxc6 {[%emt 0:01:30]} 27. Re1 {[%emt 0:02:30]} Kd7 {[%emt 0:00:30]} 28. Rd1+ {[%emt 0:00:30]} Ke7 {[%emt 0:00:30]} 29. Rd2 {[%emt 0:04:30]} a6 {[%emt 0:00:30]} 30. Re2+ {[%emt 0:02:30]} Kd7 {[%emt 0:00:30]} 31. Rd2+ {[%emt 0:00:30]} Ke7 {[%emt 0:00:30]} 1/2-1/2

[Event "Marmaris Karya IM 2018"]
[Site "Marmaris"]
[Date "2018.06.28"]
[Round "4.2"]
[White "Darban, Morteza"]
[Black "Dedebas, Emre Emin"]
[Result "1-0"]
[ECO "E05"]
[WhiteElo "2312"]
[BlackElo "2336"]
[Annotator "ChessBase"]
[PlyCount "109"]
[EventDate "2018.06.25"]
[EventCountry "TUR"]
[SourceTitle "playchess.com"]
[Source "ChessBase"]
[SourceQuality "1"]
[TimeControl "5400+30"]

1. d4 {[%emt 0:02:30]} Nf6 {[%emt 0:01:00]} 2. g3 {[%emt 0:02:30]} e6 {[%emt 0:00:00]} 3. Bg2 {[%emt 0:00:30]} d5 {[%emt 0:00:00]} 4. Nf3 {[%emt 0:00:30]} Be7 {[%emt 0:00:30]} 5. O-O {[%emt 0:00:00]} O-O {[%emt 0:00:00]} 6. c4 {[%emt 0:00:00]} dxc4 {[%emt 0:00:00]} 7. Qc2 {[%emt 0:00:00]} a6 {[%emt 0:00:30]} 8. a4 {[%emt 0:00:00]} Bd7 {[%emt 0:00:30]} 9. Rd1 {[%emt 0:00:30]} Bc6 {[%emt 0:00:00]} 10. Nc3 {[%emt 0:00:00]} Bxf3 {[%emt 0:03:00]} 11. Bxf3 {[%emt 0:00:00]} Nc6 {[%emt 0:00:00]} 12. Bxc6 {[%emt 0:00:30]} bxc6 {[%emt 0:00:00]} 13. Bg5 {[%emt 0:01:30]} Rb8 {[%emt 0:05:30]} 14. Rab1 {[%emt 0:14:30]} h6 {[%emt 0:23:30]} 15. Bxf6 {[%emt 0:07:30]} Bxf6 {[%emt 0:00:30]} 16. Ne4 {[%emt 0:04:30]} Rb4 {[%emt 0:07:30]} 17. e3 {[%emt 0:05:30]} Be7 {[%emt 0:01:30]} 18. Nd2 {[%emt 0:00:30]} c5 {[%emt 0:07:30]} 19. Nxc4 {[%emt 0:05:30]} Qd5 {[%emt 0:08:30]} 20. b3 {[%emt 0:01:30]} cxd4 {[%emt 0:04:30]} 21. Rxd4 {[%emt 0:00:30]} Qc6 {[%emt 0:01:30]} 22. Rc1 {[%emt 0:07:30]} Rfb8 {[%emt 0:04:30]} 23. Rd3 {[%emt 0:01:30]} Qc5 {[%emt 0:01:30]} 24. Nd2 {[%emt 0:00:30]} Qxc2 {[%emt 0:14:01]} 25. Rxc2 {[%emt 0:00:00]} R8b7 {[%emt 0:00:06]} 26. Rd7 {[%emt 0:06:00]} c5 {[%emt 0:00:59]} 27. Rxb7 {[%emt 0:00:30]} Rxb7 {[%emt 0:00:01]} 28. Kf1 {[%emt 0:00:30]} Kf8 {[%emt 0:00:10]} 29. Rc3 {[%emt 0:03:30]} Ke8 {[%emt 0:07:55]} 30. Rd3 {[%emt 0:00:30]} Rd7 {[%emt 0:00:46]} 31. Ke2 {[%emt 0:00:00]} Rxd3 {[%emt 0:00:36]} 32. Kxd3 {[%emt 0:00:00]} Kd7 {[%emt 0:00:01]} 33. Kc4 {[%emt 0:13:30]} Kc6 {[%emt 0:00:08]} 34. Nf3 {[%emt 0:00:00]} Bd6 {[%emt 0:02:18]} 35. e4 {[%emt 0:02:00]} Bc7 {[%emt 0:00:30]} 36. h3 {[%emt 0:03:30]} Bd6 {[%emt 0:00:15]} 37. Ne1 {[%emt 0:03:01]} Be7 {[%emt 0:02:13]} 38. Nd3 {[%emt 0:00:12]} Bd6 {[%emt 0:00:03]} 39. g4 {[%emt 0:05:42]} g5 {[%emt 0:02:01]} 40. e5 {[%emt 0:08:02]} Bf8 {[%emt 0:04:18]} 41. f4 {[%emt 0:01:44]} gxf4 {[%emt 0:00:30]} 42. Nxf4 {[%emt 0:00:03]} Be7 {[%emt 0:00:34]} 43. Nd3 {[%emt 0:00:29]} Kb6 {[%emt 0:00:25]} 44. Ne1 {[%emt 0:01:14]} Bf8 {[%emt 0:01:49]} 45. h4 {[%emt 0:00:35]} Kc6 {[%emt 0:00:28]} 46. Nf3 {[%emt 0:00:26]} Bg7 {[%emt 0:00:45]} 47. h5 {[%emt 0:01:04]} f6 {[%emt 0:00:00]} 48. exf6 {[%emt 0:00:47]} Bxf6 {[%emt 0:00:11]} 49. Nd2 {[%emt 0:00:30]} Bg5 {[%emt 0:00:29]} 50. Ne4 {[%emt 0:00:44]} Be3 {[%emt 0:00:54]} 51. a5 {[%emt 0:01:35]} Bg1 {[%emt 0:00:11]} 52. g5 {[%emt 0:00:12]} hxg5 {[%emt 0:00:05]} 53. Nxg5 {[%emt 0:00:04]} Kd6 {[%emt 0:00:07]} 54. h6 {[%emt 0:00:54]} Ke7 {[%emt 0:00:18]} 55. Nf3 {[%emt 0:00:55]} 1-0

[Event "Marmaris Karya IM 2018"]
[Site "Marmaris"]
[Date "2018.06.28"]
[Round "4.3"]
[White "Korneev, Oleg"]
[Black "Tanriverdi, Enes"]
[Result "1-0"]
[ECO "D02"]
[WhiteElo "2517"]
[BlackElo "2281"]
[Annotator "ChessBase"]
[PlyCount "109"]
[EventDate "2018.06.25"]
[EventCountry "TUR"]
[SourceTitle "playchess.com"]
[Source "ChessBase"]
[SourceQuality "1"]
[TimeControl "5400+30"]

1. d4 {[%emt 0:05:30]} d5 {[%emt 0:04:00]} 2. Nf3 {[%emt 0:01:30]} Nf6 {[%emt 0:00:30]} 3. Bf4 {[%emt 0:00:30]} e6 {[%emt 0:00:30]} 4. e3 {[%emt 0:00:00]} Bd6 {[%emt 0:00:30]} 5. Bg3 {[%emt 0:00:00]} O-O {[%emt 0:00:30]} 6. Nbd2 {[%emt 0:00:30]} c5 {[%emt 0:00:30]} 7. c3 {[%emt 0:00:30]} Nc6 {[%emt 0:02:30]} 8. Bb5 {[%emt 0:00:00]} Ne7 {[%emt 0:04:30]} 9. Bd3 {[%emt 0:00:00]} Ng6 {[%emt 0:12:30]} 10. Bxg6 {[%emt 0:01:30]} hxg6 {[%emt 0:00:30]} 11. Bxd6 {[%emt 0:00:30]} Qxd6 {[%emt 0:00:00]} 12. Ne5 {[%emt 0:00:30]} b5 {[%emt 0:01:00]} 13. Nb3 {[%emt 0:01:30]} c4 {[%emt 0:02:30]} 14. Nc5 {[%emt 0:05:30]} a5 {[%emt 0:05:30]} 15. h4 {[%emt 0:02:30]} b4 {[%emt 0:01:30]} 16. h5 {[%emt 0:10:30]} g5 {[%emt 0:03:30]} 17. h6 {[%emt 0:04:30]} g6 {[%emt 0:00:30]} 18. Qf3 {[%emt 0:04:30]} Nh7 {[%emt 0:00:00]} 19. Nxc4 {[%emt 0:00:30]} Qc7 {[%emt 0:07:00]} 20. Ne5 {[%emt 0:03:30]} f6 {[%emt 0:00:00]} 21. Nxg6 {[%emt 0:15:30]} Re8 {[%emt 0:00:00]} 22. Qh5 {[%emt 0:00:00]} Qf7 {[%emt 0:00:30]} 23. f4 {[%emt 0:01:00]} e5 {[%emt 0:01:30]} 24. fxe5 {[%emt 0:03:30]} Bf5 {[%emt 0:00:30]} 25. Nf4 {[%emt 0:00:30]} bxc3 {[%emt 0:00:30]} 26. bxc3 {[%emt 0:00:30]} fxe5 {[%emt 0:00:30]} 27. Qxf7+ {[%emt 0:00:30]} Kxf7 {[%emt 0:00:30]} 28. Nxd5 {[%emt 0:00:30]} exd4 {[%emt 0:00:00]} 29. O-O {[%emt 0:01:30]} Kg6 {[%emt 0:01:00]} 30. exd4 {[%emt 0:03:30]} Re2 {[%emt 0:01:30]} 31. Rfe1 {[%emt 0:05:30]} Rae8 {[%emt 0:00:30]} 32. Kf1 {[%emt 0:01:30]} Bg4 {[%emt 0:00:00]} 33. Nd3 {[%emt 0:05:30]} Kxh6 {[%emt 0:01:00]} 34. Ne5 {[%emt 0:03:30]} Rf8+ {[%emt 0:00:00]} 35. Kg1 {[%emt 0:00:00]} Rxe1+ {[%emt 0:00:00]} 36. Rxe1 {[%emt 0:00:00]} Be6 {[%emt 0:00:00]} 37. Ne3 {[%emt 0:01:30]} Nf6 {[%emt 0:02:00]} 38. c4 {[%emt 0:00:46]} g4 {[%emt 0:00:00]} 39. d5 {[%emt 0:01:58]} Bc8 {[%emt 0:00:00]} 40. d6 {[%emt 0:04:08]} g3 {[%emt 0:00:30]} 41. Nd5 {[%emt 0:02:17]} Nxd5 {[%emt 0:00:30]} 42. cxd5 {[%emt 0:01:55]} Rf5 {[%emt 0:00:00]} 43. d7 {[%emt 0:01:31]} Bxd7 {[%emt 0:00:00]} 44. Nxd7 {[%emt 0:00:34]} Rxd5 {[%emt 0:00:30]} 45. Nf6 {[%emt 0:00:22]} Rd2 {[%emt 0:00:30]} 46. Ne4 {[%emt 0:00:11]} Rxa2 {[%emt 0:00:00]} 47. Nxg3 {[%emt 0:00:07]} a4 {[%emt 0:00:00]} 48. Re5 {[%emt 0:00:51]} Kg6 {[%emt 0:00:30]} 49. Ra5 {[%emt 0:00:22]} Ra1+ {[%emt 0:00:30]} 50. Kf2 {[%emt 0:02:55]} a3 {[%emt 0:00:30]} 51. Ne2 {[%emt 0:00:37]} Kf6 {[%emt 0:00:30]} 52. Nc3 {[%emt 0:00:42]} Ke6 {[%emt 0:00:00]} 53. Nb5 {[%emt 0:00:25]} a2 {[%emt 0:00:00]} 54. Nd4+ {[%emt 0:03:04]} Kd6 {[%emt 0:00:30]} 55. Nc2 {[%emt 0:00:03]} 1-0

[Event "Marmaris Karya IM 2018"]
[Site "Marmaris"]
[Date "2018.06.28"]
[Round "4.5"]
[White "Bagaturov, Giorgi"]
[Black "Unat, Can Haktan"]
[Result "1-0"]
[ECO "D77"]
[WhiteElo "2397"]
[BlackElo "2047"]
[Annotator "ChessBase"]
[PlyCount "87"]
[EventDate "2018.06.25"]
[EventCountry "TUR"]
[SourceTitle "playchess.com"]
[Source "ChessBase"]
[SourceQuality "1"]
[TimeControl "5400+30"]

1. d4 {[%emt 0:00:30]} Nf6 {[%emt 0:03:00]} 2. Nf3 {[%emt 0:00:00]} g6 {[%emt 0:00:00]} 3. c4 {[%emt 0:02:00]} Bg7 {[%emt 0:00:00]} 4. g3 {[%emt 0:00:30]} d5 {[%emt 0:01:30]} 5. Bg2 {[%emt 0:02:30]} O-O {[%emt 0:00:30]} 6. O-O {[%emt 0:02:30]} dxc4 {[%emt 0:00:00]} 7. Na3 {[%emt 0:00:30]} c3 {[%emt 0:00:00]} 8. bxc3 {[%emt 0:00:30]} c5 {[%emt 0:00:30]} 9. e3 {[%emt 0:00:30]} Nc6 {[%emt 0:00:00]} 10. Bb2 {[%emt 0:00:30]} Bf5 {[%emt 0:00:00]} 11. Qe2 {[%emt 0:01:30]} Qb6 {[%emt 0:00:30]} 12. Rfd1 {[%emt 0:03:30]} Rfd8 {[%emt 0:00:00]} 13. h3 {[%emt 0:03:30]} Rac8 {[%emt 0:10:00]} 14. c4 {[%emt 0:16:30]} Nb4 {[%emt 0:00:30]} 15. Ne1 {[%emt 0:10:30]} Na6 {[%emt 0:18:30]} 16. d5 {[%emt 0:14:30]} Ne4 {[%emt 0:11:30]} 17. Bxg7 {[%emt 0:00:30]} Kxg7 {[%emt 0:00:30]} 18. Nb5 {[%emt 0:01:30]} Nd6 {[%emt 0:00:30]} 19. e4 {[%emt 0:04:30]} Bd7 {[%emt 0:01:30]} 20. Nxd6 {[%emt 0:02:30]} exd6 {[%emt 0:02:30]} 21. Rab1 {[%emt 0:01:30]} Qc7 {[%emt 0:04:30]} 22. Qb2+ {[%emt 0:02:30]} Kg8 {[%emt 0:00:00]} 23. Qxb7 {[%emt 0:00:30]} Qa5 {[%emt 0:03:00]} 24. Qxa7 {[%emt 0:04:30]} Ba4 {[%emt 0:02:30]} 25. Rdc1 {[%emt 0:00:30]} Ra8 {[%emt 0:06:30]} 26. Qe7 {[%emt 0:04:30]} Nb4 {[%emt 0:02:30]} 27. Rb2 {[%emt 0:03:59]} Be8 {[%emt 0:05:30]} 28. Bf1 {[%emt 0:07:23]} Qa3 {[%emt 0:07:30]} 29. Rcb1 {[%emt 0:00:45]} Nxa2 {[%emt 0:05:24]} 30. Rb3 {[%emt 0:00:13]} Qa5 {[%emt 0:00:54]} 31. Ra1 {[%emt 0:01:43]} Qd2 {[%emt 0:01:12]} 32. Ra3 {[%emt 0:01:22]} Rxa3 {[%emt 0:05:47]} 33. Qxd8 {[%emt 0:00:06]} Kf8 {[%emt 0:01:24]} 34. Qxd6+ {[%emt 0:00:30]} Kg7 {[%emt 0:00:19]} 35. Qe5+ {[%emt 0:02:02]} f6 {[%emt 0:01:21]} 36. Qxe8 {[%emt 0:00:24]} Qb2 {[%emt 0:00:49]} 37. Qe7+ {[%emt 0:00:25]} Kg8 {[%emt 0:00:06]} 38. Qxc5 {[%emt 0:01:00]} Rc3 {[%emt 0:00:43]} 39. Rd1 {[%emt 0:01:10]} Qb3 {[%emt 0:00:16]} 40. Qd4 {[%emt 0:00:13]} Nc1 {[%emt 0:01:26]} 41. d6 {[%emt 0:00:11]} Rxg3+ {[%emt 0:00:30]} 42. fxg3 {[%emt 0:00:44]} Qxg3+ {[%emt 0:00:34]} 43. Ng2 {[%emt 0:00:04]} Nb3 {[%emt 0:00:38]} 44. Qd3 {[%emt 0:00:30]} 1-0

[Event "Marmaris Karya IM 2018"]
[Site "Marmaris"]
[Date "2018.06.27"]
[Round "5.4"]
[White "Arda, Cagil Irmak"]
[Black "Bagaturov, Giorgi"]
[Result "0-1"]
[ECO "C10"]
[WhiteElo "2257"]
[BlackElo "2397"]
[Annotator "NA"]
[PlyCount "102"]
[EventDate "2018.06.25"]
[EventCountry "TUR"]
[SourceTitle "playchess.com"]
[Source "ChessBase"]
[SourceQuality "1"]
[TimeControl "5400+30"]

1. e4 {[%emt 0:00:30]} e6 {[%emt 0:01:00]} 2. d4 {[%emt 0:00:00]} d5 {[%emt 0:00:30]} 3. Nd2 {[%emt 0:00:00]} dxe4 {[%emt 0:00:30]} 4. Nxe4 {[%emt 0:00:30]} Nd7 {[%emt 0:00:30]} 5. Nf3 {[%emt 0:00:00]} Ngf6 {[%emt 0:00:30]} 6. Bg5 {[%emt 0:02:00]} Be7 {[%emt 0:00:30] LiveBook: 606 Games} 7. Nxf6+ {[%emt 0:00:30]} Nxf6 {[%emt 0:00:30]} 8. Be2 {[%emt 0:10:30]} O-O {[%emt 0:07:30] C10: French with 3 Nc3: Unusual Black 3rd moves and 3...dxe4} 9. O-O {[%emt 0:01:30]} c5 {[%emt 0:05:30]} (9... h6 10. Bh4 Nd5 {½-½ (10) Rios,C (2403)-Duran Vega,S (2360) Havana 2018}) 10. c3 {[%emt 0:10:30]} Qc7 {[%emt 0:07:30]} 11. dxc5 {[%emt 0:04:30]} Rd8 $146 {[%emt 0:08:30]} ({Predecessor:} 11... Qxc5 12. Be3 Qc7 13. Bd4 Nd7 14. Qa4 e5 15. Be3 Nc5 16. Qc2 {½-½ (48) Petuchov,S-Pokorny,P Czechia 1996}) 12. Qa4 {[%emt 0:01:30]} Bd7 {[%emt 0:05:30]} 13. Bb5 {[%emt 0:08:30]} Bxb5 {[%emt 0:15:30]} 14. Qxb5 {[%emt 0:00:00]} Qxc5 {[%emt 0:03:30]} 15. Qxc5 {[%emt 0:09:00]} Bxc5 {[%emt 0:00:30]} 16. Rad1 {[%emt 0:04:30]} Kf8 {[%emt 0:05:30]} 17. Ne5 {[%emt 0:11:30]} Ke8 {[%emt 0:04:30]} 18. Nc4 {[%emt 0:04:30]} b5 {[%emt 0:14:39]} 19. Na5 {[%emt 0:08:30]} Rxd1 {[%emt 0:01:11]} 20. Rxd1 {[%emt 0:00:30]} Ne4 {[%emt 0:00:26]} 21. Be3 {[%emt 0:01:30]} Bxe3 {[%emt 0:01:24]} 22. fxe3 {[%emt 0:00:30]} Rd8 {[%emt 0:03:11]} 23. Rxd8+ {[%emt 0:00:33]} Kxd8 {[%emt 0:00:05]} 24. Kf1 {[%emt 0:01:05]} Kc7 {[%emt 0:00:30]} 25. Ke2 {[%emt 0:00:13]} f5 {[%emt 0:01:33]} 26. Nb3 {[%emt 0:01:23]} e5 {[%emt 0:01:16]} 27. Nd2 {[%emt 0:05:09]} Nc5 {[%emt 0:00:46]} 28. Nf3 {[%emt 0:06:22]} Kd6 {[%emt 0:00:30]} 29. b3 {[%emt 0:01:04]} Ne4 {[%emt 0:00:30]} 30. Kd3 {[%emt 0:00:35]} Kd5 {[%emt 0:00:30]} 31. c4+ {[%emt 0:00:38]} bxc4+ {[%emt 0:00:30]} 32. bxc4+ {[%emt 0:00:32]} Kd6 {[%emt 0:00:30]} 33. Nd2 {[%emt 0:01:46]} Nxd2 {[%emt 0:00:39]} 34. Kxd2 {[%emt 0:00:03]} Kc5 {[%emt 0:00:11]} 35. Kc3 {[%emt 0:00:57]} g5 {[%emt 0:00:40]} 36. g3 {[%emt 0:03:34]} h5 {[%emt 0:03:08]} 37. Kd3 {[%emt 0:02:23]} Kb4 {[%emt 0:00:37]} 38. a3+ {[%emt 0:00:02]} Kc5 {[%emt 0:00:15]} 39. Kc3 {[%emt 0:01:13]} a5 {[%emt 0:01:09]} 40. Kd3 {[%emt 0:00:42]} a4 {[%emt 0:02:29]} 41. h4 {[%emt 0:00:41]} gxh4 {[%emt 0:02:59]} 42. gxh4 {[%emt 0:00:04]} f4 {[%emt 0:00:04]} 43. exf4 {[%emt 0:00:28]} exf4 $19 {[%emt 0:00:04]} 44. Ke4 {[%emt 0:00:06]} Kxc4 {[%emt 0:00:06]} 45. Kxf4 {[%emt 0:00:03]} Kb3 {[%emt 0:00:04]} 46. Kg5 {[%emt 0:00:06]} Kxa3 {[%emt 0:00:07]} 47. Kxh5 {[%emt 0:00:02]} Kb4 {[%emt 0:00:08]} 48. Kg6 {[%emt 0:00:11]} a3 {[%emt 0:00:04]} 49. h5 {[%emt 0:00:11]} a2 {[%emt 0:00:04]} 50. h6 {[%emt 0:00:05]} a1=Q {[%emt 0:00:05]} 51. Kh7 {[%emt 0:00:03]} Qf6 {[%emt 0:00:07]} 0-1